[Event "*** SCC Grand Prix: Titled Tuesday Blitz"]
[Site "Chess.com"]
[Date "2020.08.11"]
[Round "7"]
[White "Sophist4Life"]
[Black "ketster"]
[Result "1-0"]
[WhiteElo "2509"]
[BlackElo "2372"]
[TimeControl "180+1"]
[EndTime "11:17:08 PDT"]
[Termination "Sophist4Life won on time"]

1. d4 {[%clk 0:03:00.9]} 1... Nf6 {[%clk 0:02:58.6]} 2. c4 {[%clk 0:03:01.8]}
2... e6 {[%clk 0:02:57.8]} 3. Nc3 {[%clk 0:03:02.3]} 3... Bb4 {[%clk 0:02:57.3]}
4. e3 {[%clk 0:03:02.8]} 4... O-O {[%clk 0:02:56.6]} 5. Ne2 {[%clk 0:03:03.7]}
5... d5 {[%clk 0:02:55]} 6. a3 {[%clk 0:03:04.6]} 6... Bd6 {[%clk 0:02:54]} 7.
c5 {[%clk 0:03:03.7]} 7... Be7 {[%clk 0:02:54.3]} 8. b4 {[%clk 0:03:04.6]} 8...
b6 {[%clk 0:02:52.1]} 9. Bb2 {[%clk 0:03:05]} 9... a5 {[%clk 0:02:50]} 10. Nf4
{[%clk 0:03:02]} 10... c6 {[%clk 0:02:36.1]} 11. Bd3 {[%clk 0:02:57]} 11... Ba6
{[%clk 0:02:34.6]} 12. O-O {[%clk 0:02:53.7]} 12... Bxd3 {[%clk 0:02:21.4]} 13.
Nxd3 {[%clk 0:02:54.6]} 13... Nbd7 {[%clk 0:02:14.5]} 14. b5 {[%clk 0:02:51]}
14... bxc5 {[%clk 0:02:01.5]} 15. bxc6 {[%clk 0:02:50]} 15... cxd4 {[%clk
0:02:00.1]} 16. Nb5 {[%clk 0:02:17.9]} 16... Nb6 {[%clk 0:01:37]} 17. Bxd4
{[%clk 0:02:15.8]} 17... Nc4 {[%clk 0:01:35.9]} 18. a4 {[%clk 0:02:09.9]} 18...
Qc8 {[%clk 0:01:25.5]} 19. c7 {[%clk 0:02:07.2]} 19... Nd7 {[%clk 0:01:19.3]}
20. f4 {[%clk 0:02:04.1]} 20... Qb7 {[%clk 0:00:53.3]} 21. Rb1 {[%clk
0:01:45.2]} 21... Qc6 {[%clk 0:00:49.9]} 22. Rc1 {[%clk 0:01:45.1]} 22... Qb7
{[%clk 0:00:30.1]} 23. e4 {[%clk 0:01:44.7]} 23... Ndb6 {[%clk 0:00:24.4]} 24.
Qg4 {[%clk 0:01:39.7]} 24... e5 {[%clk 0:00:08.7]} 25. fxe5 {[%clk 0:01:32.5]}
25... dxe4 {[%clk 0:00:08.7]} 26. Nf4 {[%clk 0:01:23.3]} 26... g6 {[%clk
0:00:06.2]} 27. h4 {[%clk 0:01:08.2]} 27... Nd2 {[%clk 0:00:06.4]} 28. Nd6
{[%clk 0:01:03.2]} 28... Bxd6 {[%clk 0:00:04.8]} 29. exd6 {[%clk 0:01:04.1]}
29... Nxf1 {[%clk 0:00:04.5]} 30. Rxf1 {[%clk 0:00:55]} 30... Nd5 {[%clk
0:00:04]} 31. Nh5 {[%clk 0:00:49.5]} 31... Qb4 {[%clk 0:00:04]} 32. Qxe4 {[%clk
0:00:46.9]} 32... gxh5 {[%clk 0:00:02.9]} 33. Qxd5 {[%clk 0:00:46.3]} 1-0

[Event "*** SCC Grand Prix: Titled Tuesday Blitz"]
[Site "Chess.com"]
[Date "2020.08.11"]
[Round "7"]
[White "ehrenfeld"]
[Black "attack2mateU"]
[Result "1-0"]
[WhiteElo "2566"]
[BlackElo "2707"]
[TimeControl "180+1"]
[EndTime "11:17:09 PDT"]
[Termination "ehrenfeld won by resignation"]

1. e4 {[%clk 0:03:00.9]} 1... c5 {[%clk 0:02:59.8]} 2. d3 {[%clk 0:03:00.1]}
2... Nc6 {[%clk 0:02:59]} 3. f4 {[%clk 0:02:59.6]} 3... g6 {[%clk 0:02:58.3]} 4.
Nf3 {[%clk 0:02:59.6]} 4... Bg7 {[%clk 0:02:58.7]} 5. Be2 {[%clk 0:02:59.8]}
5... d5 {[%clk 0:02:49.1]} 6. O-O {[%clk 0:02:59.2]} 6... e6 {[%clk 0:02:41.7]}
7. c3 {[%clk 0:02:58.5]} 7... Nge7 {[%clk 0:02:40.6]} 8. Na3 {[%clk 0:02:57.3]}
8... O-O {[%clk 0:02:39.7]} 9. e5 {[%clk 0:02:57.2]} 9... d4 {[%clk 0:02:35.6]}
10. Nc4 {[%clk 0:02:55.7]} 10... b5 {[%clk 0:01:55.2]} 11. Nd6 {[%clk
0:02:54.1]} 11... Ba6 {[%clk 0:01:55.8]} 12. a4 {[%clk 0:02:32.1]} 12... b4
{[%clk 0:01:53.9]} 13. c4 {[%clk 0:02:16.8]} 13... Qc7 {[%clk 0:00:56.2]} 14.
Ne4 {[%clk 0:02:03.4]} 14... Na5 {[%clk 0:00:53.5]} 15. g4 {[%clk 0:01:58.6]}
15... Bb7 {[%clk 0:00:53]} 16. Nfd2 {[%clk 0:01:56.1]} 16... f6 {[%clk
0:00:37.6]} 17. exf6 {[%clk 0:01:54]} 17... Bxf6 {[%clk 0:00:38.5]} 18. Bf3
{[%clk 0:01:43.5]} 18... Bh4 {[%clk 0:00:27.9]} 19. Nb3 {[%clk 0:01:12.8]} 19...
Nxb3 {[%clk 0:00:27.5]} 20. Qxb3 {[%clk 0:01:12.8]} 20... e5 {[%clk 0:00:28.1]}
21. fxe5 {[%clk 0:01:06.2]} 21... Qxe5 {[%clk 0:00:27.6]} 22. Bh6 {[%clk
0:01:03.8]} 22... Rxf3 {[%clk 0:00:20.9]} 23. Rxf3 {[%clk 0:01:01.4]} 23... Bxe4
{[%clk 0:00:21.5]} 24. dxe4 {[%clk 0:01:01.5]} 24... Qxe4 {[%clk 0:00:11]} 25.
Raf1 {[%clk 0:00:54.5]} 25... Qxg4+ {[%clk 0:00:10.8]} 26. Kh1 {[%clk
0:00:54.2]} 26... Nf5 {[%clk 0:00:11.3]} 27. Rxf5 {[%clk 0:00:51.6]} 27... gxf5
{[%clk 0:00:08.5]} 28. Rg1 {[%clk 0:00:51.4]} 28... Re8 {[%clk 0:00:08.2]} 29.
Rxg4+ {[%clk 0:00:47.7]} 29... fxg4 {[%clk 0:00:09.1]} 30. Bd2 {[%clk
0:00:45.4]} 30... Re2 {[%clk 0:00:06.5]} 31. Qd3 {[%clk 0:00:45.3]} 31... Rf2
{[%clk 0:00:06.1]} 32. Kg1 {[%clk 0:00:40.4]} 32... Kf7 {[%clk 0:00:03.7]} 33.
Qe4 {[%clk 0:00:39.2]} 33... Rxd2 {[%clk 0:00:03.1]} 34. Qf4+ {[%clk 0:00:39.1]}
34... Kg6 {[%clk 0:00:03.5]} 35. Qxd2 {[%clk 0:00:39.1]} 1-0

[Event "*** SCC Grand Prix: Titled Tuesday Blitz"]
[Site "Chess.com"]
[Date "2020.08.11"]
[Round "7"]
[White "abhidabhi"]
[Black "Chess_Boxer123"]
[Result "1-0"]
[WhiteElo "2790"]
[BlackElo "2587"]
[TimeControl "180+1"]
[EndTime "11:17:11 PDT"]
[Termination "abhidabhi won by resignation"]

1. e4 {[%clk 0:03:00.5]} 1... c6 {[%clk 0:02:58.4]} 2. Nf3 {[%clk 0:02:59.9]}
2... d5 {[%clk 0:02:58.2]} 3. Nc3 {[%clk 0:03:00.6]} 3... Bg4 {[%clk 0:02:57.6]}
4. h3 {[%clk 0:03:00.2]} 4... Bxf3 {[%clk 0:02:57.8]} 5. Qxf3 {[%clk 0:03:00.7]}
5... e6 {[%clk 0:02:58.3]} 6. d4 {[%clk 0:02:57.7]} 6... Nf6 {[%clk 0:02:37.9]}
7. e5 {[%clk 0:02:50.5]} 7... Nfd7 {[%clk 0:02:37.5]} 8. Ne2 {[%clk 0:02:46.7]}
8... f6 {[%clk 0:02:31.7]} 9. exf6 {[%clk 0:02:44.9]} 9... Qxf6 {[%clk
0:02:31.9]} 10. Qg3 {[%clk 0:02:35.5]} 10... Na6 {[%clk 0:02:26.1]} 11. Bf4
{[%clk 0:02:19.3]} 11... Nb4 {[%clk 0:02:07.2]} 12. O-O-O {[%clk 0:02:09.5]}
12... Nxa2+ {[%clk 0:02:03.9]} 13. Kb1 {[%clk 0:02:09.4]} 13... Nb4 {[%clk
0:02:04.8]} 14. Qb3 {[%clk 0:01:48.3]} 14... a5 {[%clk 0:02:01.2]} 15. Qe3
{[%clk 0:01:27.9]} 15... Be7 {[%clk 0:01:52]} 16. Be5 {[%clk 0:01:19.2]} 16...
Nxe5 {[%clk 0:01:50.4]} 17. dxe5 {[%clk 0:01:19.1]} 17... Qg6 {[%clk 0:01:49]}
18. Qd2 {[%clk 0:01:14.4]} 18... O-O {[%clk 0:01:40]} 19. f4 {[%clk 0:01:13.2]}
19... c5 {[%clk 0:01:37.9]} 20. g4 {[%clk 0:01:11.7]} 20... a4 {[%clk
0:01:37.3]} 21. f5 {[%clk 0:01:09.5]} 21... exf5 {[%clk 0:01:37]} 22. Nf4 {[%clk
0:01:08.8]} 22... Qb6 {[%clk 0:01:28.6]} 23. c3 {[%clk 0:01:04.9]} 23... Nc6
{[%clk 0:00:59.5]} 24. Nxd5 {[%clk 0:01:04.5]} 24... Qb3 {[%clk 0:00:59.9]} 25.
Ne3 {[%clk 0:00:58.3]} 25... b5 {[%clk 0:00:54.2]} 26. Bg2 {[%clk 0:00:57.1]}
26... Rad8 {[%clk 0:00:44.6]} 27. Bd5+ {[%clk 0:00:55.3]} 27... Kh8 {[%clk
0:00:39.9]} 28. Bxb3 {[%clk 0:00:54.2]} 28... Rxd2 {[%clk 0:00:40.8]} 29. Rxd2
{[%clk 0:00:54.5]} 29... axb3 {[%clk 0:00:41.1]} 30. Nxf5 {[%clk 0:00:54.5]}
30... Bg5 {[%clk 0:00:41.3]} 31. Rd5 {[%clk 0:00:52]} 31... c4 {[%clk
0:00:32.5]} 32. Rxb5 {[%clk 0:00:51.1]} 32... g6 {[%clk 0:00:26.2]} 33. Nd6
{[%clk 0:00:50.4]} 33... Rf2 {[%clk 0:00:13.1]} 34. e6 {[%clk 0:00:46.6]} 34...
Kg7 {[%clk 0:00:11.3]} 1-0

[Event "*** SCC Grand Prix: Titled Tuesday Blitz"]
[Site "Chess.com"]
[Date "2020.08.11"]
[Round "7"]
[White "Gulkov_Igor"]
[Black "Quiet_Desperation"]
[Result "0-1"]
[WhiteElo "2405"]
[BlackElo "2287"]
[TimeControl "180+1"]
[EndTime "11:17:15 PDT"]
[Termination "Quiet_Desperation won on time"]

1. Nf3 {[%clk 0:03:00.9]} 1... d5 {[%clk 0:02:59.3]} 2. d4 {[%clk 0:02:59.7]}
2... c6 {[%clk 0:02:59]} 3. c4 {[%clk 0:02:59.7]} 3... Nf6 {[%clk 0:02:58.5]} 4.
Nc3 {[%clk 0:02:58.9]} 4... dxc4 {[%clk 0:02:58.4]} 5. a4 {[%clk 0:02:58.4]}
5... Bf5 {[%clk 0:02:57.9]} 6. Ne5 {[%clk 0:02:58.3]} 6... Nbd7 {[%clk
0:02:57.3]} 7. Nxc4 {[%clk 0:02:58.2]} 7... e6 {[%clk 0:02:57.4]} 8. f3 {[%clk
0:02:57.4]} 8... Bb4 {[%clk 0:02:54.6]} 9. e4 {[%clk 0:02:57.1]} 9... Bg6 {[%clk
0:02:54]} 10. Be3 {[%clk 0:02:56.1]} 10... O-O {[%clk 0:02:53.6]} 11. Be2 {[%clk
0:02:53.2]} 11... c5 {[%clk 0:02:50.1]} 12. O-O {[%clk 0:02:52.2]} 12... cxd4
{[%clk 0:02:43.8]} 13. Bxd4 {[%clk 0:02:51.6]} 13... Rc8 {[%clk 0:02:32.5]} 14.
Kh1 {[%clk 0:02:05.4]} 14... Nh5 {[%clk 0:02:10.1]} 15. Be3 {[%clk 0:01:56]}
15... Nb6 {[%clk 0:01:59.1]} 16. Nxb6 {[%clk 0:01:51.5]} 16... axb6 {[%clk
0:01:58]} 17. Qxd8 {[%clk 0:01:48.3]} 17... Rfxd8 {[%clk 0:01:57.4]} 18. Rfd1
{[%clk 0:01:48.3]} 18... f5 {[%clk 0:01:51.9]} 19. Bxb6 {[%clk 0:01:32.4]} 19...
Rxd1+ {[%clk 0:01:50.5]} 20. Rxd1 {[%clk 0:01:29.8]} 20... Bxc3 {[%clk
0:01:48.3]} 21. bxc3 {[%clk 0:01:29.3]} 21... Nf4 {[%clk 0:01:45.8]} 22. exf5
{[%clk 0:01:14.5]} 22... Bxf5 {[%clk 0:01:42.3]} 23. Bb5 {[%clk 0:01:11.1]}
23... Rxc3 {[%clk 0:01:41]} 24. h4 {[%clk 0:00:32.4]} 24... h5 {[%clk
0:01:30.2]} 25. Bf1 {[%clk 0:00:30]} 25... Bd3 {[%clk 0:01:08.7]} 26. Bxd3
{[%clk 0:00:25.5]} 26... Rxd3 {[%clk 0:01:04.2]} 27. Rxd3 {[%clk 0:00:24.8]}
27... Nxd3 {[%clk 0:01:03.9]} 28. Kg1 {[%clk 0:00:24.8]} 28... Nb2 {[%clk
0:00:59.7]} 29. a5 {[%clk 0:00:24.5]} 29... Nc4 {[%clk 0:00:59.9]} 30. Bc7
{[%clk 0:00:24.6]} 30... Kf7 {[%clk 0:00:58.2]} 31. Kf2 {[%clk 0:00:24.7]} 31...
Ke8 {[%clk 0:00:58.4]} 32. Ke2 {[%clk 0:00:24.5]} 32... Kd7 {[%clk 0:00:58.6]}
33. Bf4 {[%clk 0:00:19.2]} 33... Kc6 {[%clk 0:00:56.9]} 34. Kd3 {[%clk
0:00:20.1]} 34... Kb5 {[%clk 0:00:56.8]} 35. Ke4 {[%clk 0:00:20]} 35... Kxa5
{[%clk 0:00:55.2]} 36. Be5 {[%clk 0:00:17.2]} 36... Nxe5 {[%clk 0:00:53.2]} 37.
Kxe5 {[%clk 0:00:17.1]} 37... b5 {[%clk 0:00:53.2]} 38. Kxe6 {[%clk 0:00:17.3]}
38... b4 {[%clk 0:00:53.3]} 0-1

[Event "*** SCC Grand Prix: Titled Tuesday Blitz"]
[Site "Chess.com"]
[Date "2020.08.11"]
[Round "7"]
[White "Lenyas66"]
[Black "Son_of_Sultan"]
[Result "0-1"]
[WhiteElo "2481"]
[BlackElo "2693"]
[TimeControl "180+1"]
[EndTime "11:17:16 PDT"]
[Termination "Son_of_Sultan won on time"]

1. e4 {[%clk 0:03:00.9]} 1... c5 {[%clk 0:02:58.6]} 2. Nf3 {[%clk 0:03:00.9]}
2... Nc6 {[%clk 0:02:58.4]} 3. Bb5 {[%clk 0:03:01]} 3... g6 {[%clk 0:02:57.6]}
4. O-O {[%clk 0:03:00.7]} 4... Bg7 {[%clk 0:02:56.2]} 5. Re1 {[%clk 0:03:00.9]}
5... e5 {[%clk 0:02:51.7]} 6. b4 {[%clk 0:03:00.7]} 6... cxb4 {[%clk 0:02:46]}
7. a3 {[%clk 0:03:00.2]} 7... Nge7 {[%clk 0:02:43.1]} 8. axb4 {[%clk 0:02:59.4]}
8... Nxb4 {[%clk 0:02:42.6]} 9. c3 {[%clk 0:02:55.3]} 9... Nbc6 {[%clk
0:02:40.3]} 10. d4 {[%clk 0:02:55.3]} 10... exd4 {[%clk 0:02:39.7]} 11. cxd4
{[%clk 0:02:55]} 11... O-O {[%clk 0:02:39.6]} 12. Ba3 {[%clk 0:02:49.2]} 12...
Re8 {[%clk 0:02:32.2]} 13. Nc3 {[%clk 0:02:45.7]} 13... a6 {[%clk 0:02:25.7]}
14. Bc4 {[%clk 0:02:43.4]} 14... b5 {[%clk 0:02:25.5]} 15. Bxf7+ {[%clk
0:02:42.5]} 15... Kxf7 {[%clk 0:02:23]} 16. Qb3+ {[%clk 0:02:42.3]} 16... d5
{[%clk 0:02:19.9]} 17. exd5 {[%clk 0:02:35.9]} 17... Na5 {[%clk 0:02:19.4]} 18.
Qa2 {[%clk 0:02:04.9]} 18... Nc4 {[%clk 0:02:19]} 19. d6 {[%clk 0:01:21.8]}
19... Nf5 {[%clk 0:02:10.7]} 20. Rxe8 {[%clk 0:01:19.5]} 20... Qxe8 {[%clk
0:02:05.7]} 21. Re1 {[%clk 0:01:18.6]} 21... Qc6 {[%clk 0:01:53.2]} 22. Ng5+
{[%clk 0:01:11.5]} 22... Kg8 {[%clk 0:01:52.3]} 23. d5 {[%clk 0:00:44]} 23...
Qd7 {[%clk 0:01:48.6]} 24. Nce4 {[%clk 0:00:37.7]} 24... Bb7 {[%clk 0:01:25.8]}
25. Nc5 {[%clk 0:00:22.1]} 25... Qxd6 {[%clk 0:01:25.5]} 26. Nxb7 {[%clk
0:00:21.9]} 26... Qxa3 {[%clk 0:01:25.2]} 27. Qe2 {[%clk 0:00:21.6]} 27... Be5
{[%clk 0:01:17.4]} 28. g4 {[%clk 0:00:16.9]} 28... Nd4 {[%clk 0:01:12.8]} 29.
Qd1 {[%clk 0:00:15.4]} 29... Bf6 {[%clk 0:00:44.7]} 30. Ne6 {[%clk 0:00:13.4]}
30... Nf3+ {[%clk 0:00:43.6]} 31. Kg2 {[%clk 0:00:11.5]} 31... Nxe1+ {[%clk
0:00:43]} 32. Qxe1 {[%clk 0:00:11.6]} 32... Qd3 {[%clk 0:00:40.1]} 0-1

[Event "*** SCC Grand Prix: Titled Tuesday Blitz"]
[Site "Chess.com"]
[Date "2020.08.11"]
[Round "7"]
[White "IANOV0007"]
[Black "AGW2016"]
[Result "1-0"]
[WhiteElo "2478"]
[BlackElo "2328"]
[TimeControl "180+1"]
[EndTime "11:17:17 PDT"]
[Termination "IANOV0007 won by checkmate"]

1. Nf3 {[%clk 0:03:00.9]} 1... Nf6 {[%clk 0:02:59]} 2. g3 {[%clk 0:03:00.8]}
2... g6 {[%clk 0:02:59.4]} 3. b3 {[%clk 0:03:00.3]} 3... Bg7 {[%clk 0:02:59.9]}
4. Bb2 {[%clk 0:03:00.4]} 4... O-O {[%clk 0:03:00.6]} 5. Bg2 {[%clk 0:03:00.5]}
5... c5 {[%clk 0:02:59.9]} 6. c4 {[%clk 0:02:59.9]} 6... Nc6 {[%clk 0:02:56.9]}
7. O-O {[%clk 0:02:59.9]} 7... d5 {[%clk 0:02:54.6]} 8. cxd5 {[%clk 0:02:59.2]}
8... Nxd5 {[%clk 0:02:54.6]} 9. Bxg7 {[%clk 0:02:57.9]} 9... Kxg7 {[%clk
0:02:55.5]} 10. d4 {[%clk 0:02:57.9]} 10... cxd4 {[%clk 0:02:50.9]} 11. Nxd4
{[%clk 0:02:57.6]} 11... Nxd4 {[%clk 0:02:51.7]} 12. Qxd4+ {[%clk 0:02:57.6]}
12... Nf6 {[%clk 0:02:52.6]} 13. Qe5 {[%clk 0:02:57.6]} 13... Qd6 {[%clk
0:02:47.7]} 14. Qxd6 {[%clk 0:02:56.7]} 14... exd6 {[%clk 0:02:48.6]} 15. Rd1
{[%clk 0:02:56.7]} 15... d5 {[%clk 0:02:48.3]} 16. Nc3 {[%clk 0:02:55.2]} 16...
Be6 {[%clk 0:02:48.2]} 17. Nxd5 {[%clk 0:02:54.6]} 17... Nxd5 {[%clk 0:02:46.3]}
18. Bxd5 {[%clk 0:02:54.5]} 18... Bxd5 {[%clk 0:02:47.2]} 19. Rxd5 {[%clk
0:02:54.1]} 19... Rac8 {[%clk 0:02:48.1]} 20. Rad1 {[%clk 0:02:53]} 20... Rc2
{[%clk 0:02:47.7]} 21. R5d2 {[%clk 0:02:52.3]} 21... Rfc8 {[%clk 0:02:48.2]} 22.
Kf1 {[%clk 0:02:50.3]} 22... b6 {[%clk 0:02:45.3]} 23. e3 {[%clk 0:02:48.6]}
23... h5 {[%clk 0:02:45.1]} 24. h4 {[%clk 0:02:47.8]} 24... Kf6 {[%clk
0:02:44.4]} 25. Ke2 {[%clk 0:02:47.6]} 25... Kf5 {[%clk 0:02:44.1]} 26. Rxc2
{[%clk 0:02:46.5]} 26... Rxc2+ {[%clk 0:02:43.4]} 27. Rd2 {[%clk 0:02:46.6]}
27... Rc7 {[%clk 0:02:42]} 28. Kf3 {[%clk 0:02:42.6]} 28... Ke6 {[%clk
0:02:42.2]} 29. e4 {[%clk 0:02:39.7]} 29... Ke5 {[%clk 0:02:40.2]} 30. Rd5+
{[%clk 0:02:37.4]} 30... Ke6 {[%clk 0:02:40.4]} 31. Ke2 {[%clk 0:02:33.7]} 31...
Rc2+ {[%clk 0:02:38.1]} 32. Rd2 {[%clk 0:02:33.4]} 32... Rc1 {[%clk 0:02:38.5]}
33. f4 {[%clk 0:02:29.2]} 33... Rg1 {[%clk 0:02:37.2]} 34. Kf3 {[%clk
0:02:26.3]} 34... Rf1+ {[%clk 0:02:37.4]} 35. Kg2 {[%clk 0:02:24.1]} 35... Rc1
{[%clk 0:02:37.1]} 36. e5 {[%clk 0:02:23.3]} 36... Rc7 {[%clk 0:02:35.6]} 37.
Kf3 {[%clk 0:02:16]} 37... Rc3+ {[%clk 0:02:34.6]} 38. Kf2 {[%clk 0:02:15.9]}
38... Rc7 {[%clk 0:02:27.4]} 39. Ke3 {[%clk 0:02:12.3]} 39... Rc3+ {[%clk
0:02:26.9]} 40. Rd3 {[%clk 0:02:12.3]} 40... Rc2 {[%clk 0:02:27.3]} 41. a4
{[%clk 0:02:11.6]} 41... Rc1 {[%clk 0:02:26.5]} 42. Kd4 {[%clk 0:02:07.1]} 42...
f6 {[%clk 0:02:05.5]} 43. exf6 {[%clk 0:02:05.2]} 43... Kxf6 {[%clk 0:02:03.6]}
44. Ke4 {[%clk 0:02:01.1]} 44... Re1+ {[%clk 0:02:02.3]} 45. Kf3 {[%clk
0:02:00.5]} 45... Re6 {[%clk 0:01:59.3]} 46. Rd7 {[%clk 0:01:55.1]} 46... a5
{[%clk 0:01:59.4]} 47. Rb7 {[%clk 0:01:53.8]} 47... Rc6 {[%clk 0:01:59.2]} 48.
Ke4 {[%clk 0:01:53]} 48... Ke6 {[%clk 0:01:56.1]} 49. Kd4 {[%clk 0:01:51.7]}
49... Kf5 {[%clk 0:01:41.6]} 50. Kd5 {[%clk 0:01:50.4]} 50... Rf6 {[%clk
0:01:41.1]} 51. Re7 {[%clk 0:01:42.3]} 51... Kg4 {[%clk 0:01:35.6]} 52. Re3
{[%clk 0:01:41.7]} 52... Rf8 {[%clk 0:01:36.1]} 53. Kc6 {[%clk 0:01:39.4]} 53...
Rf6+ {[%clk 0:01:36]} 54. Kb5 {[%clk 0:01:39]} 54... Rd6 {[%clk 0:01:36.2]} 55.
Rc3 {[%clk 0:01:36.1]} 55... Kh3 {[%clk 0:01:32.4]} 56. b4 {[%clk 0:01:32.6]}
56... axb4 {[%clk 0:01:31.7]} 57. Kxb4 {[%clk 0:01:32.3]} 57... Kg4 {[%clk
0:01:28.3]} 58. Kb5 {[%clk 0:01:31.8]} 58... Kh3 {[%clk 0:01:20.6]} 59. Rc6
{[%clk 0:01:29.1]} 59... Rxc6 {[%clk 0:01:20.3]} 60. Kxc6 {[%clk 0:01:28.8]}
60... Kxg3 {[%clk 0:01:21]} 61. Kxb6 {[%clk 0:01:28.8]} 61... Kxh4 {[%clk
0:01:15]} 62. a5 {[%clk 0:01:28.9]} 62... Kg3 {[%clk 0:01:15.6]} 63. a6 {[%clk
0:01:29.1]} 63... h4 {[%clk 0:01:16.1]} 64. a7 {[%clk 0:01:29.3]} 64... Kxf4
{[%clk 0:01:15.4]} 65. a8=Q {[%clk 0:01:28.4]} 65... g5 {[%clk 0:01:16.3]} 66.
Qf8+ {[%clk 0:01:27.1]} 66... Kg3 {[%clk 0:01:16.3]} 67. Qd6+ {[%clk 0:01:25.8]}
67... Kg4 {[%clk 0:01:15.3]} 68. Qd4+ {[%clk 0:01:25.2]} 68... Kg3 {[%clk
0:01:15.2]} 69. Qe3+ {[%clk 0:01:24.8]} 69... Kg4 {[%clk 0:01:15.3]} 70. Qg1+
{[%clk 0:01:24.3]} 70... Kf4 {[%clk 0:01:15.1]} 71. Qh2+ {[%clk 0:01:23.5]}
71... Kg4 {[%clk 0:01:14.8]} 72. Qg2+ {[%clk 0:01:22.8]} 72... Kf4 {[%clk
0:01:14.6]} 73. Kc5 {[%clk 0:01:22.8]} 73... g4 {[%clk 0:01:14.4]} 74. Kd5
{[%clk 0:01:22.6]} 74... h3 {[%clk 0:01:14.2]} 75. Qf2+ {[%clk 0:01:21.8]} 75...
Kg5 {[%clk 0:01:13.8]} 76. Ke4 {[%clk 0:01:21.5]} 76... Kh5 {[%clk 0:01:12.7]}
77. Qg3 {[%clk 0:01:21.1]} 77... h2 {[%clk 0:01:12.7]} 78. Qxh2+ {[%clk
0:01:20.3]} 78... Kg5 {[%clk 0:01:13.2]} 79. Qg3 {[%clk 0:01:19.8]} 79... Kh5
{[%clk 0:01:12.5]} 80. Kf4 {[%clk 0:01:19.3]} 80... Kh6 {[%clk 0:01:13.4]} 81.
Qxg4 {[%clk 0:01:19]} 81... Kh7 {[%clk 0:01:13.5]} 82. Kf5 {[%clk 0:01:19.3]}
82... Kh8 {[%clk 0:01:13.7]} 83. Kf6 {[%clk 0:01:19]} 83... Kh7 {[%clk
0:01:14.6]} 84. Qg7# {[%clk 0:01:18.8]} 1-0

[Event "*** SCC Grand Prix: Titled Tuesday Blitz"]
[Site "Chess.com"]
[Date "2020.08.11"]
[Round "7"]
[White "kngopal"]
[Black "MoreChessJulia"]
[Result "1-0"]
[WhiteElo "2178"]
[BlackElo "1861"]
[TimeControl "180+1"]
[EndTime "11:17:17 PDT"]
[Termination "kngopal won by checkmate"]

1. b3 {[%clk 0:03:00.9]} 1... Nf6 {[%clk 0:02:52.3]} 2. Bb2 {[%clk 0:03:00.5]}
2... b5 {[%clk 0:02:47.3]} 3. g3 {[%clk 0:02:59.3]} 3... Bb7 {[%clk 0:02:46.6]}
4. Nf3 {[%clk 0:02:59.4]} 4... d6 {[%clk 0:02:42.6]} 5. Bg2 {[%clk 0:02:59.4]}
5... Nbd7 {[%clk 0:02:40.8]} 6. d4 {[%clk 0:02:55.9]} 6... g6 {[%clk 0:02:39.3]}
7. O-O {[%clk 0:02:54.1]} 7... Bg7 {[%clk 0:02:39]} 8. Nbd2 {[%clk 0:02:54.2]}
8... O-O {[%clk 0:02:38.4]} 9. e3 {[%clk 0:02:52.8]} 9... Re8 {[%clk 0:02:36.2]}
10. Qe2 {[%clk 0:02:51.1]} 10... a6 {[%clk 0:02:35.3]} 11. a4 {[%clk 0:02:49.8]}
11... c6 {[%clk 0:02:32.7]} 12. Rfd1 {[%clk 0:02:36.6]} 12... e5 {[%clk
0:02:32]} 13. dxe5 {[%clk 0:02:36.2]} 13... dxe5 {[%clk 0:02:31.7]} 14. Ng5
{[%clk 0:02:33.4]} 14... Qc7 {[%clk 0:02:29.7]} 15. Nge4 {[%clk 0:02:28.2]}
15... Nxe4 {[%clk 0:02:26.5]} 16. Nxe4 {[%clk 0:02:27.6]} 16... Nf8 {[%clk
0:02:12]} 17. Nd6 {[%clk 0:02:25.1]} 17... Red8 {[%clk 0:02:07.6]} 18. Nxb7
{[%clk 0:02:23.2]} 18... Qxb7 {[%clk 0:02:07.3]} 19. axb5 {[%clk 0:02:21.1]}
19... axb5 {[%clk 0:02:07]} 20. Rxd8 {[%clk 0:01:53.7]} 20... Rxd8 {[%clk
0:02:04.3]} 21. h4 {[%clk 0:01:46.3]} 21... h5 {[%clk 0:02:01.2]} 22. Rd1 {[%clk
0:01:44.9]} 22... Rxd1+ {[%clk 0:01:58.5]} 23. Qxd1 {[%clk 0:01:44.4]} 23... Ne6
{[%clk 0:01:57.6]} 24. Qd6 {[%clk 0:01:44.1]} 24... Qa7 {[%clk 0:01:35.9]} 25.
Bxe5 {[%clk 0:01:15.5]} 25... Bxe5 {[%clk 0:01:30.1]} 26. Qxe5 {[%clk
0:01:14.7]} 26... Qd7 {[%clk 0:01:28.6]} 27. c4 {[%clk 0:00:59]} 27... bxc4
{[%clk 0:01:18.7]} 28. bxc4 {[%clk 0:00:58.4]} 28... Ng7 {[%clk 0:01:16.6]} 29.
Qc5 {[%clk 0:00:52.3]} 29... Nf5 {[%clk 0:01:09.4]} 30. Bxc6 {[%clk 0:00:45.8]}
30... Qd1+ {[%clk 0:01:08.1]} 31. Kg2 {[%clk 0:00:44.9]} 31... Nh6 {[%clk
0:01:07.6]} 32. Qd5 {[%clk 0:00:38.5]} 32... Qe2 {[%clk 0:00:46.7]} 33. Be8
{[%clk 0:00:36.3]} 33... Kg7 {[%clk 0:00:42]} 34. c5 {[%clk 0:00:34.8]} 34...
Ng4 {[%clk 0:00:35.2]} 35. Qxf7+ {[%clk 0:00:33.6]} 35... Kh6 {[%clk 0:00:33.8]}
36. Qxg6# {[%clk 0:00:32.1]} 1-0